bitfinex/quotes_SOLUSD_20251002
["timestamp","ask_amount","ask_price","bid_price","bid_amount"]
[1759414689565,0.68,225.82,225.79,121.91647521]
[1759414689761,0.68,225.82,225.79,126.3452756]
[1759414690770,1.72524046,225.84,225.79,126.3452756]
[1759414690771,0.68,225.87,225.79,126.7852756]
[1759414691073,2.40524046,225.87,225.79,126.7852756]
[1759414691662,1.72524046,225.86,225.79,126.7852756]
[1759414691841,1.72524046,225.84,225.79,90.07647521]
[1759414692044,4.42755981,225.86,225.79,90.07647521]
[1759414692045,1.72524046,225.81,225.79,10.87647521]
[1759414692375,15.49636349,225.86,225.8,10.87647521]
[1759414692540,2.69657118,225.81,225.8,10.87647521]
[1759414692745,3.37657118,225.81,225.8,10.87647521]
[1759414693973,2.69657118,225.83,225.81,10.87647521]
[1759414694150,0.68,225.86,225.82,31.84]
[1759414694658,2.69657118,225.87,225.82,31.84]
[1759414694849,2.89657118,225.89,225.83,10.87647521]
[1759414695050,0.68,225.87,225.83,10.87647521]
[1759414695379,0.88,225.89,225.83,10.87647521]
[1759414695559,0.2,225.89,225.85,10.87647521]
[1759414695751,0.2,225.89,225.87,10.87647521]
[1759414696074,0.2,225.89,225.87,15.30375907]
[1759414696375,0.2,225.89,225.88,42.71647521]
[1759414697968,0.2,225.89,225.88,47.14360465]
[1759414698174,0.2,225.89,225.88,42.71647521]
[1759414698992,0.88,225.89,225.88,10.87647521]
[1759414700585,0.2,225.89,225.88,10.87647521]
[1759414700960,0.2,225.89,225.88,15.30360465]
[1759414701382,0.2,225.89,225.88,10.87647521]
[1759414701588,0.2,225.89,225.88,15.30360465]
[1759414702086,0.2,225.89,225.88,47.12360465]
[1759414702591,0.88,225.89,225.88,10.87647521]
[1759414702791,3.57657118,225.89,225.88,90.07647521]
[1759414703286,0.88,225.89,225.88,90.07647521]
[1759414703487,3.57657118,225.89,225.88,90.07647521]
[1759414703891,0.88,225.89,225.88,90.07647521]
[1759414704797,8.00350464,225.89,225.83,10.87647521]
[1759414704963,2.69657118,225.87,225.83,10.87647521]
[1759414705163,0.68,225.86,225.82,10.87647521]
[1759414705388,3.37657118,225.85,225.82,10.87647521]
[1759414705705,15.69426711,225.89,225.82,11.31647521]
[1759414705706,5.30693346,225.89,225.82,11.31647521]
[1759414705998,3.37657118,225.88,225.82,10.87647521]
[1759414706169,2.69657118,225.87,225.82,10.87647521]
[1759414706679,3.37657118,225.86,225.82,10.87647521]
[1759414706885,2.69657118,225.86,225.82,10.87647521]
[1759414707070,0.68,225.85,225.82,10.87647521]
[1759414707262,2.69657118,225.87,225.82,15.30478078]
[1759414707462,0.68,225.86,225.82,15.30478078]
[1759414708371,0.68,225.85,225.82,47.12478078]
[1759414708895,2.69657118,225.86,225.82,47.12478078]
[1759414709094,3.37657118,225.86,225.82,47.12478078]
[1759414710167,0.68,225.86,225.82,47.12478078]
[1759414711194,0.68,225.86,225.82,42.69647521]
[1759414711372,0.69,225.85,225.82,42.69647521]
[1759414711571,2.69657118,225.83,225.74,79.64]
[1759414711782,4.42752147,225.86,225.74,79.64]
[1759414711783,2.69657118,225.81,225.75,42.69647521]
[1759414712898,3.38657118,225.82,225.75,47.566049]
[1759414713070,2.69657118,225.8,225.75,10.87647521]
[1759414713268,0.69,225.79,225.76,31.82]
[1759414714492,3.38657118,225.79,225.75,15.30611324]
[1759414714662,0.69,225.81,225.74,10.87647521]
[1759414714869,3.38657118,225.83,225.76,10.87647521]
[1759414715105,0.2,225.89,225.78,10.87647521]
[1759414715280,0.69,225.88,225.8,10.87647521]
[1759414715480,0.69,225.88,225.82,10.87647521]
[1759414715787,0.69,225.88,225.84,10.87647521]
[1759414716192,0.69,225.87,225.84,10.87647521]
[1759414716582,0.69,225.86,225.84,10.87647521]
[1759414716970,0.69,225.85,225.84,10.87647521]
[1759414717170,0.69,225.85,225.83,10.87647521]
[1759414717373,2.69657118,225.87,225.83,10.87647521]
[1759414717589,0.69,225.86,225.83,10.87647521]
[1759414718495,0.69,225.86,225.81,10.87647521]
[1759414718496,3.38657118,225.85,225.81,10.87647521]
[1759414718696,0.69,225.84,225.81,10.87647521]
[1759414719398,0.69,225.83,225.81,10.87647521]
[1759414719570,3.38657118,225.85,225.81,10.87647521]
[1759414719987,2.69657118,225.85,225.81,10.87647521]
[1759414720198,0.69,225.85,225.81,10.87647521]
[1759414720404,5.11791794,225.84,225.8,10.87647521]
[1759414720614,0.69,225.83,225.8,10.87647521]
[1759414720815,2.69657118,225.85,225.8,10.87647521]
[1759414721011,0.69,225.84,225.8,10.87647521]
[1759414721394,2.69657118,225.86,225.8,11.31647521]
[1759414721612,0.69,225.87,225.8,11.31647521]
[1759414721613,7.12392263,225.87,225.8,10.87647521]
[1759414721917,0.69,225.86,225.8,10.87647521]
[1759414722220,3.38657118,225.86,225.8,10.87647521]
[1759414722592,4.42771751,225.85,225.8,15.305164]
[1759414722894,2.69657118,225.86,225.8,15.305164]
[1759414723423,3.38657118,225.87,225.8,15.305164]
[1759414723594,7.32353385,225.89,225.81,32.26]
[1759414723799,7.32353385,225.89,225.81,111.46]
[1759414724284,0.2,225.89,225.82,0.44]
[1759414724484,0.2,225.89,225.85,10.87647521]
[1759414725395,0.89,225.89,225.85,10.87647521]
[1759414725585,4.62696924,225.89,225.85,10.87647521]
[1759414725780,0.69,225.88,225.81,10.87647521]
[1759414726007,3.38657118,225.88,225.84,10.87647521]
[1759414726215,0.69,225.87,225.84,10.87647521]
[1759414727093,0.2,225.89,225.84,11.31647521]
[1759414727297,2.69657118,225.88,225.84,11.31647521]
[1759414727804,2.69657118,225.88,225.84,10.87647521]
[1759414728205,7.32353419,225.89,225.84,10.87647521]
[1759414728409,3.58657118,225.89,225.84,15.30432621]
[1759414728724,0.2,225.89,225.84,15.74432621]
[1759414729229,0.2,225.89,225.85,0.44]
[1759414729599,0.2,225.89,225.84,4.427851]
[1759414729793,0.2,225.89,225.84,15.74432621]
[1759414729993,0.2,225.89,225.85,0.44]
[1759414730214,0.2,225.89,225.86,43.11647521]
[1759414730517,0.2,225.89,225.88,31.67647521]
[1759414730699,0.2,225.89,225.88,36.10360465]
[1759414730904,0.2,225.89,225.88,36.54360465]
[1759414732017,0.2,225.89,225.88,68.34360465]
[1759414735394,0.2,225.89,225.88,36.10360465]
[1759414735617,0.2,225.89,225.88,10.87647521]
[1759414736529,0.2,225.89,225.88,15.30360465]
[1759414737433,0.2,225.89,225.88,10.87647521]
[1759414739207,0.89,225.89,225.88,10.87647521]
[1759414740250,0.2,225.89,225.88,10.87647521]
[1759414740610,0.2,225.89,225.88,15.30360465]
[1759414741844,0.2,225.89,225.88,10.87647521]
[1759414742352,0.87,225.89,225.88,10.87647521]
[1759414743422,0.2,225.89,225.88,10.87647521]
[1759414744468,0.2,225.89,225.88,15.30360465]
[1759414744634,0.2,225.95,225.91,10.87647521]
[1759414744949,0.2,225.95,225.94,31.67647521]
[1759414745246,0.2,225.95,225.94,63.45647521]
[1759414745546,0.2,225.95,225.94,10.87647521]
[1759414745841,0.2,225.95,225.94,42.65647521]
[1759414746047,0.2,225.95,225.94,47.082429]
[1759414747048,0.2,225.95,225.94,47.122429]
[1759414747252,0.16,225.95,225.94,47.122429]
[1759414749829,0.16,225.95,225.94,47.082429]
[1759414750023,0.16,225.95,225.94,36.102429]
[1759414750225,0.16,225.95,225.94,147.082429]
[1759414750857,0.16,225.95,225.94,115.302429]
[1759414751067,0.16,225.95,225.94,147.082429]
[1759414751959,0.16,225.95,225.94,115.302429]
[1759414752149,0.16,225.95,225.94,147.082429]
[1759414752347,0.16,225.95,225.94,115.302429]
[1759414752663,0.83,225.95,225.94,63.45647521]
[1759414752965,0.83,225.95,225.94,10.87647521]
[1759414755558,2.55311313,225.95,225.89,10.87647521]
[1759414755756,2.39311313,225.94,225.91,10.87647521]
[1759414755924,0.67,225.93,225.91,10.87647521]
[1759414756126,0.67,225.92,225.91,10.87647521]
[1759414756724,2.39311313,225.92,225.87,10.87647521]
[1759414756927,0.67,225.91,225.89,10.87647521]
[1759414757128,0.67,225.9,225.89,10.87647521]
[1759414758855,0.67,225.9,225.87,36.18731164]
[1759414759173,0.83,225.95,225.88,10.87647521]
[1759414759372,0.83,225.95,225.9,10.87647521]
[1759414759580,0.67,225.94,225.91,31.76]
[1759414759787,0.67,225.93,225.91,10.87647521]
[1759414759960,0.67,225.92,225.91,10.87647521]
[1759414761279,0.67,225.92,225.89,10.87647521]
[1759414761450,0.67,225.91,225.89,10.87647521]
[1759414761651,0.67,225.91,225.88,10.87647521]
[1759414761878,0.67,225.91,225.89,10.87647521]
[1759414762057,0.67,225.91,225.89,90.07647521]
[1759414763983,0.67,225.91,225.9,15.3032127]
[1759414764171,0.71,225.93,225.9,4.42673749]
[1759414764484,0.71,225.92,225.91,10.87647521]
[1759414764994,0.71,225.92,225.9,10.87647521]
[1759414765187,0.71,225.91,225.9,10.87647521]
[1759414765985,0.16,225.95,225.9,10.87647521]
[1759414766285,0.16,225.95,225.92,10.87647521]
[1759414766867,0.87,225.95,225.92,10.87647521]
[1759414768159,0.87,225.95,225.94,10.87647521]
[1759414769676,0.87,225.95,225.92,10.87647521]
[1759414769877,0.71,225.94,225.92,10.87647521]
[1759414770061,4.58584317,225.95,225.92,10.87647521]
[1759414770062,0.71,225.93,225.92,10.87647521]
[1759414770774,2.43311313,225.93,225.92,10.87647521]
[1759414771578,0.71,225.93,225.9,10.87647521]
[1759414771781,0.71,225.93,225.9,15.3031883]
[1759414771982,0.7,225.93,225.9,15.3031883]
[1759414772896,0.7,225.92,225.9,10.87647521]
[1759414774268,0.7,225.91,225.88,42.63647521]
[1759414774602,0.7,225.94,225.88,42.63647521]
[1759414775872,5.12619179,225.93,225.88,42.63647521]
[1759414776073,0.7,225.92,225.88,42.63647521]
[1759414776283,0.7,225.91,225.88,42.63647521]
[1759414776839,0.7,225.9,225.88,10.87647521]
[1759414777003,0.7,225.89,225.88,90.07647521]
[1759414777567,2.42311313,225.89,225.88,79.2]
[1759414777770,2.42311313,225.89,225.75,132.4]
[1759414777771,2.42311313,225.89,225.76,10.87647521]
[1759414777971,2.42311313,225.89,225.78,10.87647521]
[1759414777972,1.72311313,225.84,225.78,10.87647521]
[1759414778273,0.7,225.84,225.78,63.41647521]
[1759414780001,0.7,225.84,225.8,10.87647521]
[1759414780196,0.7,225.83,225.8,10.87647521]
[1759414780378,0.7,225.83,225.75,15.30615405]
[1759414780379,0.7,225.82,225.75,15.30615405]
[1759414780580,0.7,225.81,225.77,10.87647521]
[1759414781097,1.72311313,225.83,225.76,10.87647521]
[1759414781316,0.7,225.81,225.77,4.42928644]
[1759414782209,0.7,225.8,225.76,10.87647521]
[1759414782377,2.42311313,225.79,225.76,10.87647521]
[1759414782699,1.72311313,225.81,225.76,10.87647521]
[1759414782870,1.72311313,225.81,225.76,15.30595297]
[1759414782871,2.42311313,225.81,225.76,15.30595297]
[1759414783070,2.42311313,225.8,225.73,10.87647521]
[1759414783286,11.06895358,225.86,225.73,10.87647521]
[1759414783287,1.72311313,225.78,225.73,10.87647521]
[1759414783489,2.42311313,225.77,225.73,10.87647521]
[1759414783705,0.7,225.76,225.7,15.30713537]
[1759414783889,2.42311313,225.76,225.7,42.61647521]
[1759414784092,0.7,225.75,225.7,42.61647521]
[1759414784346,1.72311313,225.76,225.7,42.61647521]
[1759414784347,0.7,225.74,225.7,42.61647521]
[1759414784499,0.7,225.73,225.7,42.61647521]
[1759414785580,0.7,225.76,225.7,15.30699512]
[1759414786286,0.7,225.75,225.69,10.87647521]
[1759414787192,0.7,225.75,225.69,15.30731471]
[1759414787387,0.7,225.74,225.68,10.87647521]
[1759414787613,0.7,225.73,225.68,10.87647521]
[1759414787794,0.7,225.72,225.68,10.87647521]
[1759414788194,0.7,225.72,225.68,15.30747866]
[1759414788511,0.7,225.74,225.68,15.30747866]
[1759414789799,0.7,225.76,225.68,15.30747866]
[1759414790001,6.15258915,225.77,225.68,15.30747866]
[1759414790196,1.72311313,225.75,225.68,15.30747866]
[1759414790737,0.7,225.74,225.68,15.30747866]
[1759414791727,5.12990608,225.74,225.68,15.30747866]
[1759414792034,6.85301921,225.74,225.68,10.87647521]
[1759414792200,6.15301921,225.74,225.68,10.87647521]
[1759414792404,2.42311313,225.73,225.68,10.87647521]
[1759414792609,0.7,225.73,225.68,15.30750044]
[1759414792790,0.7,225.72,225.68,15.30750044]
[1759414795422,0.7,225.71,225.66,0.1]
[1759414795665,1.72311313,225.67,225.66,0.1]
[1759414795861,2.42311313,225.67,225.65,0.1]
[1759414796032,1.72311313,225.66,225.65,0.1]
[1759414796666,2.42311313,225.66,225.65,0.1]
[1759414797441,6.85455866,225.66,225.65,0.1]
[1759414798230,5.13144553,225.66,225.65,0.1]
[1759414798437,6.85455866,225.66,225.65,0.1]
[1759414801639,6.85455866,225.66,225.65,1e-08]
[1759414802754,38.61455866,225.66,225.65,1e-08]
[1759414803566,5.13144553,225.66,225.65,1e-08]
[1759414803758,38.61455866,225.66,225.65,1e-08]
[1759414807553,6.85455866,225.66,225.65,1e-08]
[1759414807761,33.48311313,225.66,225.65,1e-08]
[1759414808075,1.72311313,225.66,225.65,1e-08]
[1759414808254,29.00990943,225.72,225.65,0.10000001]
[1759414808255,11.04170908,225.72,225.65,0.10000001]
[1759414808463,31.76,225.71,225.65,0.10000001]
[1759414808649,33.48311313,225.71,225.65,0.10000001]
[1759414809452,11.04170908,225.72,225.65,0.10000001]
[1759414809789,11.04170908,225.72,225.67,10.87647521]
[1759414809968,11.04170908,225.72,225.68,0.1]
[1759414810150,11.04170908,225.72,225.67,10.87647521]
[1759414810348,17.19510072,225.72,225.65,1e-08]
[1759414810554,1.72311313,225.7,225.65,1e-08]
[1759414810765,1.72311313,225.69,225.65,1e-08]
[1759414810971,1.72311313,225.69,225.65,10.97647522]
[1759414811175,1.72311313,225.71,225.65,4.531612]
[1759414811883,6.15365437,225.71,225.65,4.531612]
[1759414812089,6.15365437,225.71,225.65,1e-08]
[1759414812270,6.15365437,225.71,225.65,10.87647522]
[1759414812595,1.72311313,225.7,225.65,10.87647522]
[1759414812763,1.72311313,225.7,225.65,1e-08]
[1759414813090,1.72311313,225.69,225.65,1e-08]
[1759414813266,1.72311313,225.7,225.65,1e-08]
[1759414813470,1.72311313,225.69,225.65,1e-08]
[1759414813672,6.15400992,225.69,225.65,1e-08]
[1759414813861,2.43311313,225.7,225.65,1e-08]
[1759414814065,11.04170908,225.72,225.65,1e-08]
[1759414814066,11.04170908,225.72,225.66,0.1]
[1759414814589,11.04170908,225.72,225.66,10.97647521]
[1759414814794,11.04170908,225.72,225.7,10.87647521]
[1759414815098,11.04170908,225.72,225.71,0.1]
[1759414815268,11.04170908,225.72,225.7,90.07647521]
[1759414815465,11.04170908,225.72,225.65,0.10000001]
[1759414815665,11.04170908,225.72,225.65,10.87647522]
[1759414815666,15.47198328,225.72,225.65,10.87647522]
[1759414815994,1.72311313,225.68,225.65,1e-08]
[1759414816292,2.69952496,225.69,225.65,1e-08]
[1759414816770,3.40952496,225.69,225.65,1e-08]
[1759414817199,2.69952496,225.68,225.65,1e-08]
[1759414817366,3.40952496,225.69,225.65,10.87647522]
[1759414817567,3.40952496,225.69,225.65,15.30803178]
[1759414817767,3.40952496,225.69,225.65,10.87647522]
[1759414817987,3.40952496,225.68,225.65,10.87647522]
[1759414818193,3.40952496,225.68,225.65,1e-08]
[1759414818371,2.69952496,225.68,225.65,1e-08]
[1759414818882,3.40952496,225.68,225.65,1e-08]
[1759414819080,0.71,225.68,225.65,1e-08]
[1759414819400,2.69952496,225.69,225.65,10.87647522]
[1759414819579,3.40952496,225.69,225.65,10.87647522]
[1759414819785,3.40952496,225.69,225.65,1e-08]
[1759414820189,2.69952496,225.7,225.65,15.30807361]
[1759414820399,0.71,225.69,225.65,10.87647522]
[1759414820598,3.40952496,225.69,225.65,1e-08]
[1759414820795,0.71,225.69,225.65,1e-08]
[1759414821004,3.40952496,225.69,225.65,1e-08]
[1759414821188,11.04170908,225.72,225.65,4.43153625]
[1759414821382,3.40952496,225.69,225.65,4.43153625]
[1759414821992,0.71,225.68,225.65,1e-08]
[1759414822389,0.71,225.67,225.65,1e-08]
[1759414823107,3.40952496,225.66,225.65,1e-08]
[1759414823905,7.84097049,225.66,225.65,1e-08]
[1759414825277,7.84097049,225.66,225.6,15.54684194]
[1759414825278,18.91958433,225.66,225.6,15.54684194]
[1759414825581,2.69952496,225.61,225.6,15.54684194]
[1759414825794,3.35952496,225.61,225.6,15.54684194]
[1759414826279,7.7919526,225.61,225.6,15.54684194]
[1759414828779,7.7919526,225.61,225.58,0.1]
[1759414828975,20.8,225.58,225.56,0.1]
[1759414829176,34.43952496,225.57,225.56,0.1]
[1759414829512,35.09952496,225.57,225.56,0.1]
[1759414830413,39.53273859,225.57,225.56,1e-08]
[1759414830781,39.53273859,225.57,225.45,0.1]
[1759414830782,20.8,225.54,225.45,0.1]
[1759414833194,0.66,225.5,225.49,0.1]
[1759414834483,32.4,225.5,225.49,0.1]
[1759414834711,36.8345898,225.5,225.49,0.1]
[1759414834896,39.53411476,225.5,225.49,0.1]
[1759414836591,20.8,225.47,225.45,0.1]
[1759414836791,34.43952496,225.46,225.45,0.1]
[1759414837101,35.09952496,225.46,225.45,0.1]
[1759414838321,39.53490152,225.46,225.45,0.1]
[1759414838824,36.83537656,225.46,225.45,0.1]
[1759414839003,39.53490152,225.46,225.45,0.1]
[1759414839313,7.79490152,225.46,225.45,0.1]
[1759414839520,39.53490152,225.46,225.45,0.1]
[1759414840901,4.43537656,225.46,225.45,0.1]
[1759414841102,39.53490152,225.46,225.45,0.1]
[1759414841416,38.87490152,225.46,225.45,0.1]
[1759414841609,39.53490152,225.46,225.45,0.1]
[1759414841801,2.69952496,225.46,225.45,0.1]
[1759414842002,38.87490152,225.46,225.45,0.1]
[1759414843419,7.79490152,225.46,225.45,0.1]
[1759414843611,39.53490152,225.46,225.45,0.1]
[1759414843924,39.53490152,225.46,225.45,1e-08]
[1759414844090,39.53490152,225.46,225.44,0.1]
[1759414844291,2.69952496,225.45,225.44,0.1]
[1759414844705,28.59509825,225.45,225.44,0.1]
[1759414847429,28.59509825,225.45,225.44,1e-08]
[1759414848317,60.33509825,225.45,225.44,1e-08]
[1759414848518,28.59509825,225.45,225.44,1e-08]
[1759414848721,59.67509825,225.45,225.44,1e-08]
[1759414848896,27.93509825,225.45,225.44,1e-08]
[1759414849096,59.67509825,225.45,225.44,1e-08]
[1759414849493,4.43557329,225.45,225.44,1e-08]
[1759414849688,34.43952496,225.45,225.44,1e-08]
[1759414849890,31.74,225.45,225.44,0.20000001]
[1759414850118,2.69952496,225.52,225.44,0.20000001]
[1759414850316,2.69952496,225.49,225.44,1e-08]
[1759414850495,2.69952496,225.47,225.44,1e-08]
[1759414850695,2.69952496,225.45,225.44,1e-08]
[1759414850898,0.5,225.5,225.45,0.2]
[1759414851100,3.19952496,225.5,225.46,0.2]
[1759414851315,3.19952496,225.5,225.47,0.2]
[1759414851316,31.74,225.49,225.47,0.2]
[1759414851518,31.74,225.49,225.44,0.20000001]
[1759414851721,0.5,225.5,225.45,0.2]
[1759414851904,32.24,225.5,225.46,0.2]
[1759414852116,39.37413394,225.5,225.44,0.20000001]
[1759414852433,2.69952496,225.49,225.44,0.20000001]
[1759414852735,2.69952496,225.46,225.44,1e-08]
[1759414853114,3.35952496,225.45,225.44,1e-08]
[1759414853426,15.52175262,225.49,225.44,1e-08]
[1759414853600,2.69952496,225.47,225.44,1e-08]
[1759414854108,34.43952496,225.48,225.44,1e-08]
[1759414854300,31.74,225.47,225.44,1e-08]
[1759414854518,31.74,225.47,225.44,0.20000001]
[1759414854821,7.13464623,225.48,225.44,1e-08]
[1759414855021,2.69952496,225.47,225.44,1e-08]
[1759414855332,2.69952496,225.46,225.44,1e-08]
[1759414855828,2.69952496,225.45,225.44,1e-08]
[1759414856832,7.13509825,225.45,225.44,1e-08]
[1759414857438,36.17557329,225.45,225.44,1e-08]
[1759414857622,38.87509825,225.45,225.44,1e-08]
[1759414857813,39.53509825,225.45,225.44,1e-08]
[1759414858014,38.87509825,225.45,225.44,1e-08]
[1759414858323,34.43952496,225.45,225.44,1e-08]
[1759414858528,31.74,225.45,225.44,1e-08]
[1759414860306,39.53509825,225.45,225.44,1e-08]
[1759414860636,0.66,225.49,225.44,1e-08]
[1759414860931,7.13474421,225.47,225.44,1e-08]
[1759414861132,2.69952496,225.47,225.44,1e-08]
[1759414861431,0.66,225.52,225.44,1e-08]
[1759414861645,34.43952496,225.51,225.44,1e-08]
[1759414861804,34.43952496,225.51,225.44,0.20000001]
[1759414862009,31.74,225.51,225.44,0.20000001]
[1759414862901,2.69952496,225.51,225.44,0.20000001]
[1759414863101,2.69952496,225.51,225.45,10.87647521]
[1759414863316,35.09952496,225.52,225.45,31.67647521]
[1759414863513,32.4,225.52,225.45,31.67647521]
[1759414864036,0.66,225.51,225.45,31.67647521]
[1759414864238,3.35952496,225.51,225.45,31.67647521]
[1759414864546,2.69952496,225.51,225.47,20.8]
[1759414864930,31.74,225.52,225.48,0.67]
[1759414865125,10.94399502,225.54,225.49,0.67]
[1759414865452,2.69952496,225.53,225.48,79.2]
[1759414865636,2.69952496,225.53,225.48,79.87]
[1759414865841,2.69952496,225.51,225.48,79.2]
[1759414866150,2.69952496,225.5,225.48,79.2]
[1759414866347,2.69952496,225.51,225.48,79.2]
[1759414866752,10.94399502,225.54,225.48,79.87]
[1759414866923,2.69952496,225.52,225.48,79.2]
[1759414867342,34.41952496,225.53,225.48,79.87]
[1759414867546,34.41952496,225.53,225.48,79.2]
[1759414867749,10.94399502,225.54,225.49,0.67]
[1759414867927,42.66399502,225.54,225.5,0.67]
[1759414868250,10.94399502,225.54,225.51,21.47]
[1759414868442,10.94399502,225.54,225.52,11.54647521]
[1759414868620,10.94399502,225.54,225.51,20.8]
[1759414869632,15.3778774,225.54,225.51,20.8]
[1759414870021,3.35952496,225.53,225.49,10.87647521]
[1759414870226,0.66,225.52,225.48,100.0]
[1759414870443,2.69952496,225.52,225.48,100.67]
[1759414870767,2.69952496,225.52,225.5,20.8]
[1759414870768,2.69952496,225.51,225.5,20.8]
[1759414871152,7.79391811,225.51,225.46,10.87647521]
[1759414871349,5.09439315,225.51,225.46,31.67647521]
[1759414871670,36.15413251,225.53,225.47,0.67]
[1759414871859,2.69952496,225.52,225.47,0.67]
[1759414872169,3.35952496,225.52,225.46,36.11184067]
[1759414872469,31.72,225.53,225.47,11.54647521]
[1759414872669,34.41952496,225.53,225.47,11.54647521]
[1759414872868,38.85356595,225.53,225.47,11.54647521]
[1759414873038,4.43439315,225.51,225.47,11.54647521]
[1759414873239,4.43439315,225.51,225.47,10.87647521]
[1759414873470,2.69952496,225.53,225.47,11.54647521]
[1759414873676,2.69952496,225.52,225.47,10.87647521]
[1759414873838,0.66,225.51,225.47,10.87647521]
[1759414874483,2.69952496,225.52,225.47,10.87647521]
[1759414874845,3.35952496,225.52,225.47,10.87647521]
[1759414875045,10.94399502,225.54,225.48,0.67]
[1759414875264,10.94399502,225.54,225.49,10.87647521]
[1759414875569,10.94399502,225.54,225.5,0.67]
[1759414876543,10.94399502,225.54,225.49,10.87647521]
[1759414876544,2.69952496,225.52,225.49,20.8]
[1759414876762,2.69952496,225.51,225.47,10.87647521]
[1759414877354,3.35952496,225.52,225.47,10.87647521]
[1759414877558,4.4344295,225.51,225.47,10.87647521]
[1759414877968,7.79373085,225.52,225.47,10.87647521]
[1759414878369,6.82453909,225.52,225.47,10.87647521]
[1759414878884,6.82453909,225.52,225.46,100.0]
[1759414878885,1.7303332,225.5,225.46,100.0]
[1759414879053,2.3903332,225.5,225.46,100.0]
[1759414879257,6.8250177,225.5,225.46,100.0]
[1759414879659,1.7303332,225.5,225.46,100.0]
[1759414879864,0.66,225.5,225.46,100.0]
[1759414880767,2.3903332,225.49,225.46,100.0]
[1759414880978,1.7303332,225.49,225.46,20.8]
[1759414881161,2.3903332,225.49,225.46,20.8]
[1759414881470,6.82531634,225.48,225.44,1e-08]
[1759414881674,1.7303332,225.45,225.44,1e-08]
[1759414881889,1.7303332,225.48,225.44,1e-08]
[1759414882082,1.7303332,225.47,225.44,1e-08]
[1759414882388,1.7303332,225.46,225.44,1e-08]
[1759414882678,2.3903332,225.46,225.44,1e-08]
[1759414883274,1.7303332,225.46,225.44,1e-08]
[1759414883472,5.09498314,225.48,225.44,1e-08]
[1759414883680,2.3903332,225.48,225.44,1e-08]
[1759414883986,6.16514911,225.49,225.44,0.70000001]
[1759414884769,6.82514911,225.49,225.44,20.80000001]
[1759414885166,2.3903332,225.49,225.44,20.80000001]
[1759414885369,0.66,225.48,225.44,20.80000001]
[1759414885562,6.82543745,225.48,225.44,1e-08]
[1759414885984,4.43479037,225.49,225.44,1e-08]
[1759414886284,1.7303332,225.51,225.45,0.7]
[1759414886482,12.67432822,225.54,225.46,31.67647521]
[1759414886687,1.7303332,225.53,225.48,10.87647521]
[1759414886892,0.66,225.52,225.47,10.87647521]
[1759414887487,1.7303332,225.53,225.47,11.57647521]
[1759414887687,4.43419652,225.52,225.47,11.57647521]
[1759414887896,2.3903332,225.51,225.46,20.8]
[1759414888099,0.66,225.5,225.46,20.8]
[1759414888391,4.43419652,225.52,225.44,11.57647522]
[1759414888392,2.3903332,225.49,225.44,31.67647522]
[1759414888595,1.7303332,225.47,225.44,20.80000001]
[1759414888777,2.3903332,225.47,225.44,20.80000001]
[1759414888965,10.94399502,225.54,225.45,11.57647521]
[1759414888966,11.60399502,225.54,225.45,11.57647521]
[1759414889169,1.7303332,225.53,225.45,11.57647521]
[1759414889569,1.7303332,225.53,225.46,0.7]
[1759414889766,10.94399502,225.54,225.49,10.87647521]
[1759414889967,10.94399502,225.54,225.5,0.7]
[1759414890159,10.94399502,225.54,225.49,10.87647521]
[1759414890399,0.66,225.62,225.52,31.67647521]
[1759414890565,0.66,225.62,225.54,10.87647521]
[1759414890976,1.7303332,225.61,225.54,10.87647521]
[1759414891184,0.66,225.6,225.54,10.87647521]
[1759414891787,6.16283659,225.61,225.55,4.43360673]
[1759414891990,6.16283659,225.61,225.54,10.87647521]
[1759414892183,1.7303332,225.58,225.52,34.11705693]
[1759414892390,1.7303332,225.56,225.52,20.8]
[1759414892891,2.3903332,225.56,225.52,20.8]
[1759414893465,1.7303332,225.56,225.52,20.8]
[1759414893791,31.7,225.64,225.54,4.43380331]
[1759414893792,4.43223118,225.62,225.54,4.43380331]